[Event "European Women-ch 2023"]
[Site "Petrovac"]
[Date "2023.03.25"]
[Round "7.14"]
[White "Melia, Salome"]
[Black "Rudzinska, Michalina"]
[Result "1-0"]
[Annotator "TA"]
[ECO "B13"]
[WhiteElo "2366"]
[BlackElo "2212"]
[PlyCount "151"]
[EventDate "2023.03.15"]
[EventType "swiss"]
[EventCountry "MNE"]
[SourceTitle "playchess.com"]
[Source "ChessBase"]
[SourceQuality "1"]
[TimeControl "40/5400+30:1800+30"]

{[%evp 11,151,14,14,14,14,13,14,12,15,18,17,15,10,12,16,20,12,7,27,13,29,20,19,6,39,16,94,31,106,106,98,72,137,137,137,139,122,139,141,141,133,135,178,178,189,190,202,207,223,224,222,223,228,222,222,224,220,219,230,223,564,560,569,566,708,701,709,700,691,284,293,289,290,275,291,291,263,268,290,256,336,314,315,249,322,208,444,425,530,498,516,494,494,475,29960,29964,29960,29964,29963,29960,29960,29966,29958,6231,29969,29969,29971,29972,29972,29973,29977,29978,29978,29979,29980,29981,29981,29976,29977,29977,29977,29977,29982,29980,29980,29981,29980,29982,29987,29983,29983,29984,29988,29989,29991,29991,29990,29991,29994,29995,29995,29996]} 1. e4 {[%emt 0:00:05]} c6 {[%emt 0:00:08]} 2. d4 {[%emt 0:00:47]} d5 {[%emt 0:00:11]} 3. exd5 {[%emt 0:00:06]} cxd5 {[%emt 0:00:08]} 4. Bd3 {[%emt 0:00:06]} Nf6 {[%emt 0:00:21]} 5. h3 {[%emt 0:00:16]} Nc6 {[%emt 0:00:26]} 6. c3 {[%emt 0:00:05]} g6 {[%emt 0:00:16]} 7. Nf3 {[%emt 0:00:40] B13: Caro-Kann: Exchange Variation and Panov-Botvinnik Attack.} Bf5 {[%emt 0:00:26] now scores much better than the old 7...Bg7.} 8. Ne5 {[%emt 0:00:35]} Bxd3 {[%emt 0:04:44]} 9. Nxd3 {[%emt 0:00:16] The position is equal.} Bg7 {[%emt 0:01:18]} 10. O-O {[%emt 0:00:34]} O-O {[%emt 0:00:08]} 11. Bf4 {[%emt 0:00:11]} Ne4 {[%emt 0:03:58]} 12. Nd2 {[%emt 0:00:26]} Nxd2 {[%emt 0:09:40]} 13. Qxd2 {[%emt 0:00:08] [#]} Na5 $146 {[%emt 0:01:14]} ({Predecessor:} 13... e6 14. g3 Rc8 15. h4 h5 16. Rfe1 Na5 17. Kg2 Nc4 18. Qe2 Qf6 19. Bg5 Qf5 {0-1 Matlakov,M (2674)-Tabatabaei,M (2623) Titled Tuesday intern op 08th Mar Early blitz 2022 (7)}) 14. Rfe1 {[%emt 0:02:28]} Re8 {[%emt 0:02:29]} 15. Qe3 {[%emt 0:01:45]} Nc4 {[%emt 0:00:59]} 16. Qf3 {[%emt 0:00:18]} Rc8 {[%emt 0:08:28]} 17. Re2 {[%emt 0:02:03]} b6 {[%emt 0:07:39]} 18. Rae1 {[%emt 0:01:28]} Qd7 {[%emt 0:01:07]} (18... e6 $11) 19. Bg5 {[%emt 0:15:16]} (19. b3 $16 Na3 20. Ne5 Bxe5 21. Rxe5) 19... f6 {[%emt 0:01:45]} ({Better is} 19... e6 $14) 20. Bf4 $16 {[%emt 0:00:07]} e6 {[%emt 0:03:40]} 21. g4 {[%emt 0:02:17]} Nd6 {[%emt 0:04:03] [#]} (21... Qf7 $142) 22. Bxd6 $1 {[%emt 0:03:09]} Qxd6 {[%emt 0:00:08]} 23. Nf4 {[%emt 0:01:02]} e5 {[%emt 0:07:40]} 24. dxe5 {[%emt 0:00:49]} fxe5 {[%emt 0:03:02] Strongly threatening ...e4.} 25. Qxd5+ {[%emt 0:00:18]} Qxd5 {[%emt 0:00:04]} 26. Nxd5 {[%emt 0:00:09]} Rcd8 {[%emt 0:01:13]} 27. c4 {[%emt 0:03:14]} Kf7 {[%emt 0:02:16]} 28. b3 {[%emt 0:14:19]} g5 {[%emt 0:03:10]} 29. Kg2 {[%emt 0:01:55]} h5 {[%emt 0:00:56]} 30. Re3 {[%emt 0:02:48]} Rd7 {[%emt 0:03:47]} 31. gxh5 {[%emt 0:08:46] Rg3 would be deadly.} Rh8 {[%emt 0:00:47]} 32. Rf3+ {[%emt 0:00:05]} Ke6 {[%emt 0:00:26]} 33. Rg3 {[%emt 0:11:48]} Rxh5 {[%emt 0:14:15]} 34. f4 {[%emt 0:00:23]} Kf5 {[%emt 0:00:30]} 35. fxe5 {[%emt 0:12:13] [#] e6 is the strong threat.} Bxe5 {[%emt 0:01:15]} (35... Ke6 {is more resistant.} 36. Re2 Bh8) 36. Rge3 $18 {[%emt 0:00:23]} Bd4 {[%emt 0:06:25]} 37. Ne7+ {[%emt 0:07:01]} Kf6 {[%emt 0:00:31]} 38. Rf3+ {[%emt 0:00:08]} Kg7 {[%emt 0:00:10]} 39. Nf5+ {[%emt 0:00:47]} Kg6 {[%emt 0:01:41]} 40. Rd1 {[%emt 0:00:00]} (40. Re6+ $142 Kh7 41. Rd3) 40... g4 {[%emt 0:00:00]} 41. hxg4 {[%emt 0:03:20]} ({Weaker is} 41. Nxd4 gxf3+ 42. Kxf3 Rh4 $17) 41... Rh2+ {[%emt 0:00:25]} 42. Kxh2 {[%emt 0:03:35]} Be5+ {[%emt 0:00:07]} 43. Kg2 {[%emt 0:04:36] White wants to mate with Nh4+.} Rxd1 {[%emt 0:00:07][%mdl 4096] Endgame KRB-KRN} 44. Ne7+ {[%emt 0:00:10]} Kh6 {[%emt 0:03:16]} 45. Nc6 {[%emt 0:00:16]} Bg7 {[%emt 0:01:45]} 46. Nxa7 {[%emt 0:01:35]} Kg5 {[%emt 0:01:06]} 47. Nb5 {[%emt 0:05:34]} Ba1 {[%emt 0:03:42]} 48. Nc3 {[%emt 0:11:56]} Rc1 {[%emt 0:03:07]} (48... Bxc3 {was worth a try.} 49. Rxc3 Kxg4) 49. Nd5 {[%emt 0:06:35]} Kxg4 {[%emt 0:05:59]} 50. Ne3+ {[%emt 0:01:34]} ({Less strong is} 50. Nxb6 Bd4 51. Rg3+ Kh4 $16) 50... Kg5 {[%emt 0:00:23]} 51. Rf5+ {[%emt 0:00:41]} Kg6 {[%emt 0:07:24]} 52. Rf1 {[%emt 0:00:06]} Rxf1 {[%emt 0:01:14]} (52... Rc3 $18 53. Kf3 Bb2) 53. Kxf1 {[%emt 0:00:08] KB-KN} Kf7 {[%emt 0:00:27]} 54. Ke2 {[%emt 0:00:45]} Ke6 {[%emt 0:00:45]} 55. Nd5 {[%emt 0:02:54]} Bd4 {[%emt 0:00:16]} 56. Kd3 {[%emt 0:00:03]} Bg1 {[%emt 0:00:14]} 57. Nc3 {[%emt 0:01:32]} (57. b4 $142 Ke5 58. Nc3 Kd6 59. Ne4+ Kc7 60. a3 Bh2 61. a4 Be5 62. c5) 57... Kd6 {[%emt 0:00:47]} 58. Ne4+ {[%emt 0:00:21] White mates.} Kc6 {[%emt 0:00:06]} 59. b4 {[%emt 0:00:08][%cal Bb3b4,Bb4b5][%mdl 32]} Bh2 {[%emt 0:00:26]} 60. b5+ {[%emt 0:00:56]} Kc7 {[%emt 0:00:25]} 61. Kd4 {[%emt 0:00:47]} Bg1+ {[%emt 0:00:20]} 62. Kd5 {[%emt 0:00:04]} Be3 {[%emt 0:00:13]} 63. a4 {[%emt 0:00:07]} Bg1 {[%emt 0:00:09]} 64. Nd2 {[%emt 0:01:36]} Bf2 {[%emt 0:00:25]} 65. Nb3 {[%emt 0:00:05]} Be1 {[%emt 0:01:05]} 66. c5 {[%emt 0:00:29]} bxc5 {[%emt 0:00:04]} 67. Kxc5 {[%emt 0:00:34]} Bf2+ {[%emt 0:00:05]} 68. Kc4 {[%emt 0:00:09]} Kb7 {[%emt 0:00:07]} 69. a5 {[%emt 0:00:17][%cal Ba4a5,Ba5a6,Ba6a7][%mdl 32]} Ka7 {[%emt 0:00:05]} 70. Kd5 {[%emt 0:00:37]} Be1 {[%emt 0:00:11]} 71. Kc6 {[%emt 0:00:15]} Kb8 {[%emt 0:00:07]} 72. b6 {[%emt 0:00:29]} Ka8 {[%emt 0:00:05]} 73. a6 {[%emt 0:02:33]} Bf2 {[%emt 0:00:06]} 74. Nc5 {[%emt 0:00:18]} Bg3 {[%emt 0:00:15]} 75. Ne6 {[%emt 0:00:53]} Kb8 {[%emt 0:00:37]} 76. a7+ {[%emt 0:00:32] Weighted Error Value: White=0.17 (very precise) /Black=0.47} 1-0

[Event "European Women-ch 2023"]
[Site "Petrovac"]
[Date "2023.03.25"]
[Round "7.14"]
[White "Allahverdiyeva, Ayan"]
[Black "Bluebaum, Johanna"]
[Result "1-0"]
[Annotator "TA"]
[ECO "C07"]
[WhiteElo "2124"]
[BlackElo "1954"]
[PlyCount "101"]
[EventDate "2023.03.15"]
[EventType "swiss"]
[EventCountry "MNE"]
[SourceTitle "playchess.com"]
[Source "ChessBase"]
[SourceQuality "1"]
[TimeControl "40/5400+30:1800+30"]

{[%evp 10,101,12,19,20,11,14,20,20,29,26,26,31,14,18,22,24,6,23,23,0,12,26,24,17,35,16,0,0,0,6,-50,-44,-50,-39,-86,-16,-179,-59,-56,-49,-50,20,21,48,62,44,36,45,-6,-6,-6,39,23,37,23,35,29,33,35,43,43,386,389,372,350,472,387,377,377,530,535,533,533,526,513,554,552,608,608,574,567,672,666,768,752,912,718,808,798,766,691,783,741]} 1. e4 {[%emt 0:01:45]} e6 {[%emt 0:00:05]} 2. d4 {[%emt 0:00:08]} d5 {[%emt 0:00:04]} 3. Nd2 {[%emt 0:00:03]} c5 {[%emt 0:00:04]} 4. exd5 {[%emt 0:00:03]} Qxd5 {[%emt 0:00:04]} 5. Ngf3 {[%emt 0:00:04]} cxd4 {[%emt 0:00:13]} 6. Bc4 {[%emt 0:00:11]} Qd7 {[%emt 0:00:17] C07: French Tarrasch: 3...c5, 4 Ngf3 and 4 exd5 Qxd5.} 7. O-O {[%emt 0:00:06]} Nc6 {[%emt 0:00:19]} 8. Nb3 {[%emt 0:00:05][%cal Rb3d4]} a6 {[%emt 0:00:18] The position is equal.} (8... Nf6 {seems wilder.} 9. Nbxd4 a6 10. Nxc6 Qxc6 11. Ne5 Qc5) 9. Nbxd4 {[%emt 0:00:12]} Nxd4 {[%emt 0:00:11]} 10. Nxd4 {[%emt 0:00:04]} Qc7 {[%emt 0:00:09]} 11. Bd3 $1 {[%emt 0:00:05][%mdl 4] is recently more successful than 11.Bb3.} Bd6 {[%emt 0:03:53]} 12. Re1 {[%emt 0:01:26]} Nf6 {[%emt 0:14:24] Dodges Qh5} 13. h3 {[%emt 0:00:12] 13.g3 is not played anymore.} O-O {[%emt 0:02:32]} 14. Bg5 {[%emt 0:00:08]} Nd5 {[%emt 0:02:48]} 15. Qh5 {[%emt 0:16:44][%csl Gd3][%cal Rh5h7]} g6 {[%emt 0:02:08]} 16. Qh4 {[%emt 0:00:57]} Bh2+ {[%emt 0:30:35]} 17. Kh1 {[%emt 0:02:30] Hoping for g3.} Bf4 {[%emt 0:00:36] [#]} 18. Re4 $146 {[%emt 0:03:25][%cal Re4f4]} ({Predecessor:} 18. Be4 Bxg5 19. Qxg5 f6 20. Qd2 Rd8 21. Rad1 e5 22. Nb5 axb5 23. Bxd5+ Kg7 24. Qb4 {0-1 Shevchenko,K (2531)-Poetsch,H (2483) BL2-Sued 1718 2017 (1.4)}) 18... e5 {[%emt 0:07:53] ...Bxg5 would be deadly.} 19. Nf3 {[%emt 0:08:19] Black must now prevent Bc4.} f6 $1 {[%emt 0:07:22] [#]} 20. Rxf4 {[%emt 0:11:57]} exf4 $15 {[%emt 0:03:28]} 21. Bh6 {[%emt 0:00:07]} Rf7 {[%emt 0:02:12]} 22. c4 {[%emt 0:05:40] [#]} (22. Rd1 $15 {should be considered.}) 22... Nb4 {[%emt 0:00:35]} (22... Ne7 $1 $17 {...Bf5 is the strong threat.} 23. Qxf4 Qxf4 24. Bxf4 Bf5) 23. Bf1 $2 {[%emt 0:04:37]} (23. Bxf4 $11 {and White stays safe.} Qc6 24. Bb1) 23... Bf5 {[%emt 0:02:43]} (23... g5 $19 24. Qh5 Bd7) 24. Bxf4 {[%emt 0:04:20]} Qd7 {[%emt 0:01:33]} 25. c5 {[%emt 0:03:09]} Nd3 {[%emt 0:01:38]} ({Black should play} 25... Bd3 $1 $15 26. Bd6 Bxf1 27. Qxb4 Qb5) 26. Bd6 $1 $11 {[%emt 0:04:27]} Re8 {[%emt 0:02:22]} ({Don't play} 26... Nxb2 27. Qd4 $16) 27. Qd4 {[%emt 0:03:13] Repels Be4} Ne5 {[%emt 0:01:03]} 28. Nxe5 {[%emt 0:01:23]} (28. Bxe5 {is interesting.} fxe5 29. Qc3 Rfe7 30. Bc4+) 28... fxe5 {[%emt 0:00:22]} 29. Bxe5 {[%emt 0:00:15]} ({White should try} 29. Qe3 $14) 29... Qxd4 {[%emt 0:04:58]} 30. Bxd4 {[%emt 0:00:01]} Re4 {[%emt 0:01:20]} 31. Be3 {[%emt 0:05:18]} Rd7 {[%emt 0:03:33]} 32. Rc1 {[%emt 0:00:05]} Be6 {[%emt 0:01:53]} 33. b3 {[%emt 0:01:57]} Bd5 {[%emt 0:02:21]} 34. Rc3 {[%emt 0:01:58]} Rh4 {[%emt 0:01:30]} 35. Kg1 {[%emt 0:00:59] aiming for g4.} Kf7 $2 {[%emt 0:00:17][%mdl 8192] [#] White stays focused until the end.} ({Better is} 35... Re4 $14) 36. g4 $1 $18 {[%emt 0:01:04]} Kf6 {[%emt 0:01:09] Wards off Bg5+} 37. f4 {[%emt 0:00:32]} Ke6 {[%emt 0:00:35] [#]} 38. f5+ $1 {[%emt 0:03:56][%mdl 512]} gxf5 {[%emt 0:00:19]} 39. Bg5 {[%emt 0:00:04]} Rg7 {[%emt 0:01:25]} (39... Rxg4+ {is a better defense.} 40. hxg4 fxg4 41. Re3+ Kf5) 40. Bxh4 {[%emt 0:00:00] White is clearly winning.} fxg4 {[%emt 0:00:00]} 41. hxg4 {[%emt 0:02:05]} Rxg4+ {[%emt 0:01:37]} 42. Bg3 {[%emt 0:01:11]} Kf6 {[%emt 0:00:16]} 43. Kf2 {[%emt 0:01:35]} a5 {[%emt 0:00:41]} 44. Rd3 {[%emt 0:00:14]} Bc6 {[%emt 0:00:22]} 45. Rd6+ {[%emt 0:00:06]} Ke7 {[%emt 0:01:22]} 46. Rh6 {[%emt 0:00:08]} Rg7 {[%emt 0:00:14]} 47. Bd6+ {[%emt 0:01:10]} Kd7 {[%emt 0:00:17]} 48. Bh3+ {[%emt 0:00:51]} Kd8 {[%emt 0:00:08]} 49. Rf6 {[%emt 0:00:08]} Be8 {[%emt 0:00:44]} 50. Bg2 {[%emt 0:00:48]} h5 {[%emt 0:00:46]} 51. Rf8 {[%emt 0:00:10] Weighted Error Value: White=0.15 (very precise) /Black=0.37} 1-0

[Event "European Women-ch 2023"]
[Site "Petrovac"]
[Date "2023.03.25"]
[Round "7.14"]
[White "Koridze, Lile"]
[Black "Lazarne Vajda, Szidonia"]
[Result "1-0"]
[Annotator "TA"]
[ECO "D12"]
[WhiteElo "2122"]
[BlackElo "2294"]
[PlyCount "119"]
[EventDate "2023.03.15"]
[EventType "swiss"]
[EventCountry "MNE"]
[SourceTitle "playchess.com"]
[Source "ChessBase"]
[SourceQuality "1"]
[TimeControl "40/5400+30:1800+30"]

{[%evp 14,119,0,-10,10,7,2,-51,-43,-54,-56,-59,-35,-41,-7,-18,-7,-22,-13,-38,-22,-39,-36,-42,-7,-40,-20,-7,23,0,0,-22,0,0,20,11,20,25,26,22,29,22,89,19,22,35,195,216,191,196,294,288,408,406,477,444,476,468,423,228,293,153,150,145,144,156,154,144,129,102,134,101,123,0,16,0,18,22,28,27,28,11,42,43,83,87,118,118,206,238,12837,12837,12837,12838,12837,236,12838,12839,29982,29983,29986,29986,29987,29988,29988,29989,29989,29990]} 1. d4 {[%emt 0:00:02]} d5 {[%emt 0:00:12]} 2. c4 {[%emt 0:00:08][%cal Bc2c4,Bc4c5][%mdl 32]} c6 {[%emt 0:00:08]} 3. Nf3 {[%emt 0:02:20]} Nf6 {[%emt 0:00:27]} 4. e3 {[%emt 0:00:11]} Bf5 {[%emt 0:00:56]} 5. Nc3 {[%emt 0:04:41]} e6 {[%emt 0:01:00]} 6. Qb3 {[%emt 0:01:35]} Qb6 {[%emt 0:03:53]} 7. c5 {[%emt 0:00:55]} Qc7 {[%emt 0:00:56]} 8. Nh4 {[%emt 0:03:49]} Bg6 {[%emt 0:03:25] D12: Slav Defence: 3 Nf3 Nf6 4 e3 Bf5.} 9. Nxg6 {[%emt 0:04:45]} hxg6 {[%emt 0:00:07]} 10. f4 {[%emt 0:01:27]} ({White should play} 10. g3 $11) 10... b6 $15 {[%emt 0:04:21] Black is slightly better.} 11. cxb6 {[%emt 0:10:37]} axb6 {[%emt 0:00:07]} 12. Be2 {[%emt 0:02:19]} Be7 {[%emt 0:02:08]} 13. Bd2 {[%emt 0:02:40] [#]} Nfd7 $146 {[%emt 0:07:32]} ({Predecessor:} 13... O-O 14. O-O c5 15. Rac1 Nc6 16. Bf3 Qd7 17. Na4 Nxd4 18. exd4 Qxa4 19. Qxb6 Rfb8 {0-1 Forman,S (2274)-Rodshtein,T (2243) CZE-chT1W 1819 2018 (11.6)}) 14. O-O {[%emt 0:02:27]} f5 {[%emt 0:03:06]} 15. g3 {[%emt 0:05:57]} Nf6 {[%emt 0:02:46]} 16. Rac1 {[%emt 0:01:26]} Nbd7 {[%emt 0:01:08]} 17. a3 {[%emt 0:02:45][%cal Og3g4]} Kf7 {[%emt 0:02:32]} 18. Bf3 {[%emt 0:04:48]} Rh7 {[%emt 0:03:54]} 19. Kg2 {[%emt 0:03:57]} Rah8 {[%emt 0:01:24]} 20. h4 {[%emt 0:00:20]} Qb7 {[%emt 0:04:58]} 21. Ne2 {[%emt 0:03:57]} Ne4 {[%emt 0:03:07]} 22. Rc2 {[%emt 0:01:38]} Qa8 {[%emt 0:08:03]} (22... Qa6 {with more complications.} 23. Be1 Rc8 24. Ng1 c5) 23. Bxe4 {[%emt 0:06:19]} fxe4 {[%emt 0:03:35]} 24. Be1 {[%emt 0:01:42]} Qa6 {[%emt 0:06:52]} 25. Ng1 {[%emt 0:04:49]} Rc8 {[%emt 0:01:29]} 26. Nh3 {[%emt 0:01:00] Hoping for Ng5+.} Rhh8 $1 {[%emt 0:00:59]} 27. Rcf2 {[%emt 0:03:04]} (27. Bc3 {feels hotter.} Bd6 28. Ng5+ Ke7 29. Rcc1) 27... Rcf8 {[%emt 0:01:30]} (27... Bd6 $11 {remains equal.}) 28. Ng5+ {[%emt 0:00:55]} (28. Qd1 $16) 28... Bxg5 $11 {[%emt 0:00:19]} 29. fxg5+ {[%emt 0:00:04]} Ke8 $2 {[%emt 0:02:54] [#]} ({Better is} 29... Ke7 $1 $14) 30. Bb4 $1 $18 {[%emt 0:00:21]} Rf5 {[%emt 0:02:30]} 31. Qc3 {[%emt 0:02:25]} Qb7 {[%emt 0:10:18]} (31... Qb5 $142 32. Bd6 Kf7) 32. Bd6 {[%emt 0:01:38]} Kf7 {[%emt 0:04:08]} (32... c5 {was called for.} 33. dxc5 Nxc5 34. Rxf5 gxf5) 33. Qd2 {[%emt 0:01:51]} Kg8 {[%emt 0:03:24]} 34. g4 {[%emt 0:00:41]} Rf3 {[%emt 0:01:03]} 35. Rxf3 {[%emt 0:00:22]} (35. Qe2 Qc8 36. Rxf3 exf3+ 37. Qxf3 Qe8 $18) 35... exf3+ {[%emt 0:00:04] Black is weak on the dark squares} 36. Kg3 {[%emt 0:00:24]} (36. Kxf3 e5 37. Kg3 (37. dxe5 Nc5 $16) 37... Qa8 38. dxe5 (38. Qf2 Qe8 $18) 38... Nc5 39. Bxc5 (39. Rf8+ $2 Qxf8 40. Bxf8 Ne4+ 41. Kf4 Nxd2 $19) 39... bxc5 $18) (36. Rxf3 $142 e5 37. Qf2 (37. Bxe5 Nxe5 38. dxe5 Qe7 $16)) 36... e5 {[%emt 0:02:06]} 37. dxe5 {[%emt 0:00:26]} (37. Bxe5 Nxe5 38. dxe5 Qe7 $16) ({White should try} 37. Rxf3 $18 {Threatens to win with Qf2.} e4 38. Rf1) 37... Nc5 $16 {[%emt 0:00:14]} 38. Bxc5 {[%emt 0:01:49]} (38. Kxf3 Ne4 39. Qe1 Qd7 $11) 38... bxc5 {[%emt 0:00:04]} 39. Rxf3 {[%emt 0:00:27][%mdl 4096] Endgame KQR-KQR} (39. Kxf3 $6 Qf7+ 40. Kg2 Qe6 $11) 39... Qe7 {[%emt 0:00:25]} 40. Qc3 {[%emt 0:00:00]} Kh7 {[%emt 0:00:00]} 41. Rf2 {[%emt 0:04:39]} Re8 {[%emt 0:02:12]} 42. Rf4 {[%emt 0:02:28]} c4 {[%emt 0:02:09]} 43. Kf3 {[%emt 0:02:46]} (43. a4 $16) 43... c5 {[%emt 0:01:16]} 44. h5 {[%emt 0:12:42]} Qxg5 {[%emt 0:01:11]} (44... gxh5 $5 {[%cal Re7g5]} 45. Qc2+ Kg8 $11) 45. hxg6+ {[%emt 0:00:29]} Qxg6 {[%emt 0:02:23]} 46. Rf5 {[%emt 0:00:30] And now Qc2 would win.} Kg8 {[%emt 0:01:31]} 47. Qc2 {[%emt 0:02:15] aiming for Qa4.} (47. Qd2 $5 {[%cal Rd2d5]} Qc6 48. Qc2 $14) 47... Qh7 {[%emt 0:05:25]} 48. Kg2 $36 {[%emt 0:02:09][%mdl 2048] Prevents Qh3+. Qd1 is the strong threat. White has good play.} (48. Qg2 g6 49. Rf6 Rxe5 $15) 48... Qh4 {[%emt 0:01:07]} 49. Qd1 {[%emt 0:00:41]} Qd8 {[%emt 0:01:39]} 50. Qa4 {[%emt 0:03:28] [#] Black must now prevent Qc6.} (50. e6 {simplifies} Rxe6 51. Rxd5 Qf6 52. Rd8+) 50... Re6 {[%emt 0:08:01] Wards off Qc6} (50... Qb8 51. Qd7 Rxe5 52. Qf7+ Kh8 53. Qh5+ Kg8 54. Rxe5 Qxb2+ 55. Kh3) (50... g6 $16 {was worth a try.} 51. Rf6 Rxe5) 51. Qa7 $18 {[%emt 0:01:00] Intending Qf7+ and mate.} Rh6 $2 {[%emt 0:04:36]} (51... Qe8 52. Qxc5 g6) 52. Qf7+ {[%emt 0:01:00]} ({Weaker is} 52. Qxc5 Qh4 53. Qxd5+ Kh7 $14) 52... Kh7 {[%emt 0:01:02]} 53. Rh5 {[%emt 0:01:51]} Rxh5 {[%emt 0:00:07]} 54. Qxh5+ {[%emt 0:00:04] KQ-KQ} Kg8 {[%emt 0:00:04]} 55. e6 {[%emt 0:00:59][%cal Be5e6,Be6e7][%mdl 32] White threatens Qf7+ and mate.} Qf6 {[%emt 0:01:04] Wards off Qf7+} 56. Qe8+ {[%emt 0:00:32] White mates.} Kh7 {[%emt 0:00:37]} 57. e7 {[%emt 0:00:11]} Qxb2+ {[%emt 0:00:47]} 58. Kh3 {[%emt 0:00:04]} Qe5 {[%emt 0:01:27]} 59. Qh5+ {[%emt 0:00:04]} Qxh5+ {[%emt 0:00:08]} 60. gxh5 {[%emt 0:00:03] Weighted Error Value: White=0.20 (precise) /Black=0.39} 1-0

[Event "European Women-ch 2023"]
[Site "Petrovac"]
[Date "2023.03.25"]
[Round "7.15"]
[White "Zaksaite, Salomeja"]
[Black "Krasteva, Beloslava"]
[Result "1-0"]
[Annotator "TA"]
[ECO "B87"]
[WhiteElo "2187"]
[BlackElo "2292"]
[PlyCount "77"]
[EventDate "2023.03.15"]
[EventType "swiss"]
[EventCountry "MNE"]
[SourceTitle "playchess.com"]
[Source "ChessBase"]
[SourceQuality "1"]
[TimeControl "40/5400+30:1800+30"]

{[%evp 24,77,2,0,0,-16,-5,-15,-21,-19,-18,0,-7,-10,-16,-14,0,-47,-44,-9,-32,-67,-14,-11,-29,-53,-47,-57,-50,-45,-32,-75,-57,-120,-109,-125,-101,-100,149,143,304,298,304,300,743,920,888,839,29994,29995,29995,29996,29996,29997,29997,29998]} 1. e4 {[%emt 0:00:15]} c5 {[%emt 0:00:08]} 2. Nf3 {[%emt 0:00:04]} d6 {[%emt 0:00:06]} 3. d4 {[%emt 0:00:19]} cxd4 {[%emt 0:00:12]} 4. Nxd4 {[%emt 0:00:04]} Nf6 {[%emt 0:00:09]} 5. Nc3 {[%emt 0:00:05]} a6 {[%emt 0:00:07]} 6. Bc4 {[%emt 0:00:36]} e6 {[%emt 0:00:09]} 7. O-O {[%emt 0:00:54]} b5 {[%emt 0:01:02]} 8. Bb3 {[%emt 0:00:05]} Be7 {[%emt 0:00:08]} 9. Qf3 {[%emt 0:00:21]} Qc7 {[%emt 0:01:04]} 10. Qg3 {[%emt 0:00:42]} O-O {[%emt 0:00:10]} 11. Bh6 {[%emt 0:00:10]} Ne8 {[%emt 0:00:22]} 12. Rad1 {[%emt 0:01:29]} Bd7 {[%emt 0:06:35]} 13. Nf3 {[%emt 0:09:53] is the legacy move (13.f4).} Nc6 {[%emt 0:03:42] B87: Sicilian Scheveningen/Najdorf: 6 Bc4, with early ...b5.} 14. Bf4 {[%emt 0:05:16]} Qb7 {[%emt 0:08:35]} 15. e5 {[%emt 0:02:20]} dxe5 {[%emt 0:03:02] The position is equal.} 16. Nxe5 {[%emt 0:00:05]} Nxe5 {[%emt 0:00:12]} 17. Bxe5 {[%emt 0:00:05]} Bf6 {[%emt 0:05:04] [#]} 18. f4 $146 {[%emt 0:16:44]} ({Predecessor:} 18. Rd4 Bc6 19. f4 Qb6 20. Qf2 Qb7 21. Rfd1 Rc8 22. a3 a5 23. Ne2 Be4 24. Rd7 {½-½ Ruck,T (2316)-Papp,P (2335) HUN-chT 1617 2016 (3.10)}) 18... a5 {[%emt 0:08:37][%cal Ba6a5,Ba5a4][%mdl 32] Strongly threatening ...a4.} 19. a3 {[%emt 0:00:25] Active counter play!} Bc6 {[%emt 0:07:50]} 20. Ne2 {[%emt 0:00:20]} (20. f5 $11 {was preferrable.}) 20... a4 $15 {[%emt 0:03:46]} 21. Ba2 {[%emt 0:00:27]} b4 {[%emt 0:01:00]} 22. Rf2 {[%emt 0:06:42]} Ra5 {[%emt 0:15:09]} (22... bxa3 $15 23. bxa3 Be4) 23. axb4 {[%emt 0:07:34]} Qxb4 {[%emt 0:00:38][%cal Oa5e5]} 24. Bc3 {[%emt 0:00:46]} Bxc3 {[%emt 0:00:59]} 25. Qxc3 {[%emt 0:00:06]} Qb6 {[%emt 0:02:12]} (25... Qxc3 {simplifies} 26. Nxc3 Nf6 27. Rfd2 g6) 26. Qd4 $1 {[%emt 0:12:10] Dodges Nf6} Qb7 {[%emt 0:03:41]} (26... Qb8 $5 {[%cal Re8f6]}) 27. Qc3 {[%emt 0:04:34]} Ra6 {[%emt 0:01:41]} (27... Ra8 $5 {[%cal Re8f6]}) 28. Rd8 {[%emt 0:14:11]} (28. Nd4 $15) 28... Qc7 $17 {[%emt 0:09:01]} 29. Rd1 {[%emt 0:03:57] [#]} Nf6 $1 {[%emt 0:00:54]} 30. Ng3 {[%emt 0:01:29]} (30. Bc4 $2 Ne4 31. Qe5 Qxe5 32. fxe5 Nxf2 33. Kxf2 Ra5 $19) 30... Ng4 $2 {[%emt 0:03:02]} (30... h5 $17 {and life is bright.} 31. f5 e5) 31. Nh5 $36 {[%emt 0:01:38][%csl Gh5][%cal Rc3g7][%mdl 2048] White is on the roll.} e5 $2 {[%emt 0:04:13] [#] This costs Black the game.} (31... Nxf2 $2 32. Qxg7#) (31... Nf6 $16 {keeps fighting.} 32. Nxf6+ gxf6) 32. Qg3 $1 $18 {[%emt 0:06:02]} Bd7 {[%emt 0:04:15] ...g6 would be deadly.} 33. f5 {[%emt 0:01:03]} Rg6 {[%emt 0:04:33]} (33... Bxf5 34. Rxf5 Rg6) 34. fxg6 {[%emt 0:00:15]} hxg6 {[%emt 0:00:04] [#]} 35. h3 $1 {[%emt 0:01:09]} Nxf2 {[%emt 0:04:51]} (35... gxh5 36. hxg4) 36. Qxg6 {[%emt 0:00:06][%csl Gh5][%cal Rg6g7] White mates.} Nxh3+ {[%emt 0:00:10]} 37. Kf1 {[%emt 0:04:10][%csl Gh5][%cal Rg6g7]} ({Not} 37. gxh3 Qc5+ 38. Kh2 Qf2+ 39. Qg2 Qxg2+ 40. Kxg2 Bb5 $18) 37... Bb5+ {[%emt 0:01:02]} 38. Ke1 {[%emt 0:00:11][%csl Gh5][%cal Rg6g7]} Qa5+ {[%emt 0:00:27]} 39. c3 {[%emt 0:00:11] Beautiful play by Zaksaite!   Weighted Error Value: White=0.14 (very precise) /Black=0.55} 1-0